bitfinex-derivatives/quotes_SOLF0:USTF0_20240830
["timestamp","ask_amount","ask_price","bid_price","bid_amount"]
[1725022139744,0.04568792,139.8,139.78,0.05474022]
[1725022139943,0.04568792,139.8,139.78,0.04917934]
[1725022140448,0.04568792,139.8,139.78,3.62557934]
[1725022141544,0.04568792,139.8,139.79,3.5762]
[1725022141745,0.04568792,139.8,139.78,0.04917934]
[1725022142142,27.42,139.79,139.78,0.04917934]
[1725022143943,0.04568792,139.8,139.78,0.04917934]
[1725022144547,3.70196653,139.8,139.78,0.04917934]
[1725022144947,0.04568792,139.8,139.78,0.04917934]
[1725022145146,30.9962,139.79,139.78,0.04917934]
[1725022146546,0.04568792,139.8,139.78,0.04917934]
[1725022147249,3.62178792,139.8,139.78,0.04917934]
[1725022147749,0.04568792,139.8,139.78,0.04917934]
[1725022149146,3.62178792,139.8,139.78,0.04917934]
[1725022149339,0.04568792,139.8,139.78,0.04917934]
[1725022149746,3.5762,139.79,139.78,0.04917934]
[1725022153553,3.62178792,139.8,139.78,0.04917934]
[1725022153857,0.04568792,139.8,139.78,0.04917934]
[1725022154155,0.04568792,139.8,139.79,3.5762]
[1725022155153,0.04568792,139.8,139.79,4.9557]
[1725022157554,0.04568792,139.8,139.78,3.62547934]
[1725022158150,0.04568792,139.8,139.79,3.5762]
[1725022158355,0.04568792,139.8,139.78,0.04917934]
[1725022159654,3.62178792,139.8,139.78,0.04917934]
[1725022160051,7.16037416,139.8,139.78,0.04917934]
[1725022160461,3.5762,139.79,139.78,0.04917934]
[1725022161257,3.62178792,139.8,139.78,0.04917934]
[1725022161758,3.62178792,139.8,139.78,3.62557934]
[1725022161959,0.04568792,139.8,139.78,0.04917934]
[1725022162661,3.62168792,139.8,139.78,3.62547934]
[1725022163561,3.5762,139.79,139.78,0.04917934]
[1725022167560,3.62178792,139.8,139.78,0.04917934]
[1725022167762,0.04568792,139.8,139.78,3.62557934]
[1725022167958,0.04568792,139.8,139.78,0.04917934]
[1725022168961,0.04568792,139.8,139.79,3.5762]
[1725022171967,0.04568792,139.8,139.78,3.62547934]
[1725022172560,0.04568792,139.8,139.79,3.5762]
[1725022175257,59.55704868,139.88,139.78,1.42657934]
[1725022175458,3.5744,139.86,139.79,27.46]
[1725022175661,3.49704868,139.88,139.8,3.58067408]
[1725022175861,27.46,139.89,139.84,3.5749]
[1725022176064,3.5743,139.87,139.84,3.5749]
[1725022176256,3.62561076,139.87,139.84,3.62400761]
[1725022176454,0.05131076,139.87,139.84,0.04910761]
[1725022176666,27.46,139.85,139.84,0.04910761]
[1725022177160,31.0347,139.85,139.84,0.04910761]
[1725022177865,31.0347,139.85,139.78,2.772]
[1725022177866,3.5755,139.82,139.79,3.5761]
[1725022178965,0.05487408,139.82,139.8,3.5759]
[1725022179369,3.63027408,139.82,139.79,3.62260119]
[1725022179559,0.05487408,139.82,139.79,0.04650119]
[1725022179763,3.56853869,139.82,139.79,0.04650119]
[1725022180257,3.5759,139.81,139.79,0.04650119]
[1725022181775,3.576,139.8,139.79,0.04650119]
[1725022182666,3.5758,139.81,139.79,0.04650119]
[1725022183371,3.576,139.8,139.79,0.04650119]
[1725022183966,54.92,139.8,139.72,1.3101]
[1725022184168,27.46,139.76,139.72,1.3101]
[1725022184473,27.46,139.76,139.72,4.888]
[1725022184670,31.0371,139.76,139.72,4.888]
[1725022184865,31.0371,139.76,139.73,0.04985802]
[1725022185064,0.0536989,139.75,139.73,0.04985802]
[1725022185869,3.6308989,139.75,139.73,0.04985802]
[1725022186571,0.0536989,139.75,139.73,0.04985802]
[1725022187866,0.0536989,139.75,139.73,3.62745802]
[1725022188072,0.0536989,139.75,139.73,0.04985802]
[1725022188986,3.6309989,139.75,139.73,0.04985802]
[1725022190565,0.0536989,139.75,139.73,0.04985802]
[1725022190766,0.0536989,139.75,139.73,2.75525802]
[1725022191670,3.6310989,139.75,139.73,0.04985802]
[1725022196568,3.6310989,139.75,139.73,3.62755802]
[1725022196775,0.0536989,139.75,139.73,3.62755802]
[1725022197177,0.0536989,139.75,139.74,14.5675]
[1725022197384,0.0536989,139.75,139.74,15.9543]
[1725022197978,0.0536989,139.75,139.74,4.9643]
[1725022198674,0.0536989,139.75,139.74,1.3868]
[1725022198880,0.0536989,139.75,139.73,5.01305802]
[1725022198881,0.0536989,139.75,139.73,0.04985802]
[1725022199784,3.6309989,139.75,139.73,0.04985802]
[1725022200478,31.0475,139.74,139.73,0.04985802]
[1725022200677,3.5775,139.74,139.73,0.04985802]
[1725022201379,10.1910989,139.75,139.73,0.04985802]
[1725022201580,3.6310989,139.75,139.73,0.04985802]
[1725022202177,3.5775,139.74,139.73,0.04985802]
[1725022205380,0.0536989,139.75,139.73,0.04985802]
[1725022206586,3.59533926,139.75,139.73,0.04985802]
[1725022207583,3.5775,139.74,139.73,0.04985802]
[1725022208986,7.17263926,139.75,139.73,0.04985802]
[1725022209389,3.581,139.61,139.44,7.17]
[1725022209684,27.47,139.62,139.52,4.0256]
[1725022209886,6.54,139.61,139.52,4.0256]
[1725022210087,27.47,139.62,139.56,3.5819]
[1725022210088,30.42479216,139.62,139.56,3.5819]
[1725022210279,20.322,139.57,139.52,4.0256]
[1725022210484,27.47,139.56,139.52,4.0256]
[1725022210684,23.953848,139.56,139.53,0.05441953]
[1725022210883,9.646848,139.56,139.53,0.05441953]
[1725022211084,2.498848,139.56,139.53,0.05441953]
[1725022211291,20.322,139.54,139.53,0.05441953]
[1725022211493,20.322,139.56,139.53,0.05441953]
[1725022211793,9.5976,139.54,139.53,0.05441953]
[1725022212180,9.0096,139.54,139.53,0.05441953]
[1725022212387,6.56,139.54,139.53,0.05441953]
[1725022212585,20.322,139.54,139.53,0.05441953]
[1725022212885,19.734,139.54,139.53,0.05441953]
[1725022213084,5.427,139.54,139.53,0.05441953]
[1725022213284,0.05388075,139.55,139.53,0.05441953]
[1725022213484,3.60250196,139.6,139.59,0.04700342]
[1725022213485,23.92450196,139.6,139.59,0.04700342]
[1725022213687,3.5816,139.58,139.53,3.5826]
[1725022213985,20.35810196,139.6,139.55,0.04565228]
[1725022214292,6.56,139.6,139.53,3.5826]
[1725022214490,23.9034,139.59,139.53,3.5826]
[1725022214691,16.7554,139.59,139.54,3.5826]
[1725022214891,16.7554,139.59,139.49,7.8562]
[1725022215081,16.7554,139.59,139.53,3.63730541]
[1725022215082,2.49605904,139.59,139.53,3.63730541]
[1725022215287,6.56,139.61,139.53,3.5828]
[1725022215483,6.56,139.61,139.54,27.47]
[1725022215688,27.47,139.63,139.55,6.2311]
[1725022215689,3.5813,139.6,139.55,6.2311]
[1725022215996,23.9033,139.63,139.55,6.2311]
[1725022216196,0.05296777,139.6,139.58,0.05055604]
[1725022216389,28.62,139.68,139.58,0.05055604]
[1725022216597,3.5813,139.6,139.55,6.2312]
[1725022216899,23.3153,139.62,139.55,2.6489]
[1725022217196,16.1673,139.62,139.55,2.6489]
[1725022217398,0.05163119,139.6,139.57,0.04586231]
[1725022217597,5.50393119,139.62,139.57,0.04586231]
[1725022217786,25.82593119,139.67,139.56,3.5819]
[1725022217992,3.581,139.61,139.56,3.5819]
[1725022218295,6.56,139.62,139.56,3.5819]
[1725022218595,0.02941673,139.61,139.58,0.04839447]
[1725022218896,3.61041673,139.61,139.58,0.04839447]
[1725022219099,0.02941673,139.61,139.58,0.04839447]
[1725022220996,0.02941673,139.61,139.6,3.5811]
[1725022221200,27.47,139.67,139.58,28.7903]
[1725022221596,34.03,139.67,139.58,28.7903]
[1725022221902,3.58,139.65,139.6,3.581]
[1725022222102,3.58,139.65,139.61,0.0520451]
[1725022222395,34.03,139.67,139.61,0.0520451]
[1725022222396,34.03,139.67,139.61,3.6328451]
[1725022222601,27.47,139.68,139.61,0.0520451]
[1725022222798,34.03,139.7,139.61,27.5220451]
[1725022222999,3.5789,139.69,139.65,3.5798]
[1725022223401,27.47,139.68,139.64,0.05489997]
[1725022223601,31.0492,139.68,139.65,0.04670496]
[1725022223998,27.47,139.68,139.65,0.04670496]
[1725022224303,27.47,139.68,139.65,3.62640496]
[1725022224493,27.47,139.68,139.65,0.04670496]
[1725022224699,31.049,139.68,139.65,3.62650496]
[1725022224894,34.03,139.7,139.65,0.04670496]
[1725022225099,34.03,139.7,139.66,0.05040983]
[1725022225303,3.5788,139.69,139.67,0.05344631]
[1725022226104,27.47,139.7,139.67,0.05344631]
[1725022227312,6.56,139.71,139.67,0.05344631]
[1725022228009,10.1385,139.71,139.67,0.05344631]
[1725022228509,10.1385,139.71,139.67,3.63254631]
[1725022228705,10.1385,139.71,139.67,0.05344631]
[1725022228907,6.56,139.71,139.67,0.05344631]
[1725022229111,31.0481,139.72,139.67,0.05344631]
[1725022229307,34.03,139.74,139.67,0.05344631]
[1725022229617,34.03,139.74,139.69,0.04782356]
[1725022229815,27.47,139.72,139.69,0.04782356]
[1725022230316,3.5784,139.71,139.69,0.04782356]
[1725022231021,31.0481,139.72,139.69,0.04782356]
[1725022232011,3.5783,139.71,139.69,0.04782356]
[1725022233313,3.5785,139.7,139.69,0.04782356]
[1725022233513,27.47,139.72,139.69,0.04782356]
[1725022233718,3.5784,139.71,139.69,0.04782356]
[1725022234515,27.47,139.72,139.69,3.62652356]
[1725022234715,27.47,139.72,139.69,0.04782356]
[1725022235118,3.5784,139.71,139.69,0.04782356]
[1725022235310,27.47,139.72,139.69,0.04782356]
[1725022235722,3.5783,139.71,139.69,0.04782356]
[1725022235916,27.47,139.7,139.69,0.04782356]
[1725022236330,27.47,139.72,139.69,0.04782356]
[1725022236825,3.5783,139.71,139.69,0.04782356]
[1725022237217,3.5785,139.7,139.69,0.04782356]
[1725022240824,3.5785,139.7,139.69,0.01812356]
[1725022241618,27.47,139.7,139.52,3.57030506]
[1725022241819,27.47,139.66,139.59,3.57751223]
[1725022242119,31.0497,139.66,139.59,3.57751223]
[1725022242331,31.0497,139.66,139.62,3.5805]
[1725022242525,31.0497,139.66,139.56,36.6493]
[1725022242526,0.04674656,139.65,139.63,0.05497976]
[1725022242735,3.62664656,139.65,139.63,0.05497976]
[1725022243031,0.04674656,139.65,139.63,0.05497976]
[1725022243217,31.05,139.64,139.63,0.05497976]
[1725022243420,23.902,139.64,139.63,0.05497976]
[1725022243727,16.754,139.64,139.63,0.05497976]
[1725022244022,9.606,139.64,139.58,3.5814]
[1725022244223,0.04674656,139.65,139.56,2.6393]
[1725022244420,3.64885461,139.66,139.58,3.5816]
[1725022244421,20.322,139.62,139.58,3.5816]
[1725022244617,13.174,139.62,139.58,3.5816]
[1725022244822,6.026,139.62,139.58,3.5816]
[1725022245022,2.50661536,139.62,139.59,0.0529063]
[1725022245327,22.82861536,139.62,139.59,0.0529063]
[1725022245524,27.47,139.6,139.59,0.0529063]
[1725022245921,20.322,139.6,139.59,0.0529063]
[1725022246228,6.026,139.6,139.59,0.0529063]
[1725022246631,3.70442291,139.61,139.59,0.0529063]
[1725022246922,13.163,139.6,139.59,0.0529063]
[1725022247129,3.08542291,139.61,139.59,0.0529063]
[1725022247330,26.862,139.61,139.59,0.0529063]
[1725022247518,23.92355715,139.61,139.59,0.0529063]
[1725022247716,23.31555715,139.61,139.59,0.0529063]
[1725022247920,9.62755715,139.61,139.59,0.0529063]
[1725022248117,6.06065715,139.61,139.59,0.0529063]
[1725022248323,26.37165715,139.67,139.59,0.0529063]
[1725022248525,20.322,139.6,139.59,0.0529063]
[1725022248724,20.40919318,139.6,139.59,0.0529063]
[1725022249029,16.22009318,139.6,139.53,2.7084]
[1725022249227,5.49429318,139.6,139.57,3.5818]
[1725022249436,23.9032,139.6,139.53,2.7084]
[1725022249736,20.40571249,139.6,139.53,2.7084]
[1725022250032,27.52144947,139.58,139.55,0.04618973]
[1725022250328,29.96273021,139.67,139.55,0.04618973]
[1725022250527,20.322,139.59,139.53,2.7084]
[1725022250727,3.5817,139.58,139.54,3.5825]
[1725022250926,34.01,139.59,139.54,3.5825]
[1725022251229,26.862,139.59,139.55,0.05075045]
[1725022251427,6.54,139.59,139.55,0.05075045]
[1725022251627,3.52626258,139.59,139.55,0.05075045]
[1725022251830,6.54,139.59,139.55,0.05075045]
[1725022252131,6.54,139.62,139.55,0.05075045]
[1725022252425,10.1207,139.62,139.57,0.05291403]
[1725022252727,3.5807,139.62,139.59,3.5813]
[1725022253036,3.5804,139.63,139.59,3.5813]
[1725022253229,33.391,139.64,139.57,0.05291403]
[1725022253419,3.5805,139.63,139.57,0.05291403]
[1725022254124,36.98463562,139.64,139.57,0.05291403]
[1725022254322,27.47,139.62,139.57,0.05291403]
[1725022254731,3.581,139.61,139.57,0.05291403]
[1725022255033,3.581,139.61,139.57,3.63461403]
[1725022255334,3.581,139.61,139.57,0.05291403]
[1725022255533,31.0507,139.62,139.57,0.05291403]
[1725022255832,37.60363562,139.64,139.57,0.05291403]
[1725022256019,3.5803,139.63,139.57,0.05291403]
[1725022256224,37.60363562,139.64,139.57,0.05291403]
[1725022256421,37.60363562,139.64,139.58,3.5815]
[1725022256632,3.5808,139.62,139.57,0.05291403]
[1725022256832,27.47,139.62,139.58,3.5814]
[1725022257039,27.47,139.62,139.57,0.05291403]
[1725022257225,3.581,139.61,139.57,0.05291403]
[1725022257731,20.322,139.6,139.57,0.05291403]
[1725022258230,10.13363562,139.64,139.57,0.05291403]
[1725022258435,27.47,139.61,139.57,0.05291403]
[1725022258632,10.13363562,139.64,139.57,3.63471403]
[1725022258834,27.47,139.61,139.57,3.63471403]
[1725022259035,3.5812,139.6,139.57,3.63471403]
[1725022259334,27.47,139.61,139.57,0.05291403]
[1725022259534,3.5816,139.59,139.57,0.05291403]
[1725022259739,27.47,139.61,139.57,0.05291403]
[1725022260436,27.47,139.61,139.57,2.81173925]
[1725022261228,27.47,139.61,139.57,0.05291403]
[1725022262829,3.5816,139.59,139.57,0.05291403]
[1725022263229,27.47,139.61,139.57,0.05291403]
[1725022263939,3.5816,139.58,139.57,0.05291403]
[1725022264241,30.4326,139.59,139.57,0.05291403]
[1725022264643,3.5816,139.58,139.57,0.05291403]
[1725022264844,3.59363562,139.64,139.57,0.05291403]
[1725022265140,6.54,139.63,139.6,3.581]
[1725022265338,3.56319322,139.64,139.6,0.05504874]
[1725022265534,56.09,139.68,139.6,0.05504874]
[1725022265730,3.5797,139.66,139.6,0.05504874]
[1725022265936,27.47,139.64,139.6,0.05504874]
[1725022266534,27.47,139.62,139.6,0.05504874]
[1725022266729,3.56319322,139.64,139.6,0.05504874]
[1725022266928,3.5808,139.61,139.6,0.05504874]
[1725022267132,31.03247693,139.62,139.6,0.05504874]
[1725022267336,27.47,139.62,139.6,0.05504874]
[1725022267643,31.11520862,139.62,139.6,0.05504874]
[1725022268342,3.5808,139.61,139.6,0.05504874]
[1725022268843,10.1208,139.61,139.6,0.05504874]
[1725022269739,3.5808,139.61,139.6,0.05504874]
[1725022269945,31.0508,139.61,139.6,0.05504874]
[1725022270242,27.47,139.61,139.53,2.75893336]
[1725022270442,27.47,139.58,139.51,2.7624]
[1725022270639,3.582,139.57,139.53,3.5829]
[1725022270937,27.47,139.56,139.51,2.7624]
[1725022271136,27.47,139.56,139.52,0.04936225]
[1725022271137,0.05286971,139.55,139.52,0.04936225]
[1725022271738,31.12370774,139.55,139.52,0.04936225]
[1725022271941,27.47,139.53,139.47,10.96263529]
[1725022272134,3.5835,139.51,139.48,2.76235749]
[1725022272344,6.54,139.52,139.48,2.76235749]
[1725022272546,20.322,139.49,139.45,2.76235749]
[1725022272749,23.906,139.49,139.46,2.76235749]
[1725022272944,27.47,139.5,139.47,2.76235749]
[1725022273133,6.58941721,139.5,139.48,2.8109764]
[1725022273338,26.91398828,139.5,139.48,0.04901496]
[1725022273534,23.34978828,139.5,139.48,0.04901496]
[1725022273845,16.20178828,139.5,139.48,0.04901496]
[1725022274043,1.89478828,139.5,139.48,0.04901496]
[1725022274444,6.54,139.53,139.48,2.76235749]
[1725022274747,26.862,139.54,139.52,0.04529275]
[1725022275050,26.862,139.54,139.52,0.05239811]
[1725022275051,33.50517884,139.54,139.52,0.05239811]
[1725022275235,26.35717884,139.54,139.52,0.05239811]
[1725022275435,3.5825,139.55,139.52,0.05239811]
[1725022275640,3.56784768,139.56,139.52,0.05239811]
[1725022275941,34.01,139.56,139.52,0.05239811]
[1725022276147,3.5825,139.55,139.52,0.05239811]
[1725022276443,34.01,139.56,139.52,0.05239811]
[1725022276844,3.582,139.57,139.52,0.05239811]
[1725022276845,6.54,139.58,139.52,0.05239811]
[1725022277042,6.54,139.58,139.54,0.05239926]
[1725022277444,6.54,139.58,139.56,3.5819]
[1725022278951,6.54,139.58,139.55,3.5823]
[1725022280251,6.54,139.58,139.54,0.05239926]
[1725022280846,255.019838,139.64,139.54,30.30319926]
[1725022281049,27.47,139.64,139.58,0.05200561]
[1725022281250,6.54,139.65,139.58,27.52200561]
[1725022281457,27.47,139.66,139.62,3.5804]
[1725022281750,27.47,139.66,139.6,0.05247501]
[1725022281947,3.5799,139.65,139.6,0.05247501]
[1725022282653,3.5799,139.65,139.6,2.8109504]
[1725022282855,3.5799,139.65,139.6,0.05247501]
[1725022283353,3.5799,139.65,139.61,3.5808]
[1725022286161,27.47,139.64,139.6,0.05247501]
[1725022286751,27.47,139.64,139.61,2.75828151]
[1725022286952,3.5804,139.63,139.62,2.75828151]
[1725022287148,27.47,139.64,139.6,0.05247501]
[1725022287351,3.5806,139.62,139.61,2.75832757]
[1725022287658,30.98859102,139.62,139.6,0.05247501]
[1725022287959,3.5808,139.61,139.6,0.05247501]
[1725022288355,3.5808,139.61,139.6,2.81137368]
[1725022288555,3.5808,139.61,139.6,0.05247501]
[1725022290158,31.0508,139.61,139.6,0.05247501]
[1725022291364,27.47,139.61,139.6,0.05247501]
[1725022291561,3.5806,139.62,139.6,0.05247501]
[1725022291956,7.19485171,139.62,139.6,0.05247501]
[1725022292164,3.5808,139.61,139.6,0.05247501]
[1725022292562,6.54,139.64,139.6,0.05247501]
[1725022292763,3.67089997,139.69,139.63,3.5801]
[1725022292963,34.01,139.68,139.65,0.05101754]
[1725022293168,7.09122643,139.67,139.65,0.05101754]
[1725022293768,27.47,139.68,139.65,0.05101754]
[1725022294067,37.98678628,139.68,139.65,0.05101754]
[1725022294572,3.5795,139.66,139.65,0.05101754]
[1725022295273,37.9395,139.66,139.65,0.05101754]
[1725022296869,37.9395,139.66,139.6,1.3171]
[1725022296870,34.36,139.66,139.6,1.3171]
[1725022297176,30.78864062,139.66,139.61,3.5807]
[1725022297370,30.78864062,139.66,139.6,1.3171]
[1725022297769,3.5799,139.65,139.62,3.5805]
[1725022297969,3.62811494,139.65,139.62,3.62611651]
[1725022298371,0.04821494,139.65,139.63,3.5801]
[1725022298571,0.04821494,139.65,139.62,0.04561651]
[1725022299365,34.28513997,139.66,139.62,0.04561651]
[1725022299580,3.5799,139.65,139.62,3.62601651]
[1725022299972,3.49649935,139.66,139.62,0.04561651]
[1725022300176,6.54,139.68,139.62,0.04561651]
[1725022300373,6.54,139.68,139.62,2.79944847]
[1725022300678,7.20305574,139.69,139.65,3.5796]
[1725022300980,6.52,139.71,139.66,0.04781676]
[1725022301178,10.0985,139.71,139.67,3.579]
[1725022301480,3.59434156,139.7,139.67,3.579]
[1725022301685,3.5784,139.71,139.68,3.579]
[1725022301887,3.61438968,139.7,139.68,3.579]
[1725022302069,34.36,139.72,139.68,3.579]
[1725022302275,3.5784,139.71,139.68,3.579]
[1725022302470,37.93465145,139.72,139.69,3.5787]
[1725022302974,3.5783,139.71,139.67,0.05405841]
[1725022303184,3.5783,139.71,139.68,3.5789]
[1725022306177,41.51265145,139.72,139.67,0.05405841]
[1725022306784,3.5783,139.71,139.67,0.05405841]
[1725022306975,37.93465145,139.72,139.67,0.05405841]
[1725022307387,37.93465145,139.72,139.67,3.63325841]
[1725022307388,37.9387,139.7,139.67,3.63325841]
[1725022307679,34.36,139.7,139.67,0.05405841]
[1725022308186,3.5789,139.69,139.67,0.05405841]
[1725022308779,37.9386,139.7,139.67,3.63335841]
[1725022309690,3.5788,139.69,139.67,0.05405841]
[1725022311183,37.9386,139.7,139.67,3.63325841]
[1725022311383,37.93465145,139.72,139.67,0.05405841]
[1725022311586,34.36,139.72,139.67,0.05405841]
[1725022311786,37.89712209,139.72,139.67,3.63325841]
[1725022312382,3.5786,139.7,139.67,3.63325841]
[1725022313183,37.89712209,139.72,139.67,3.63325841]
[1725022313680,3.53712209,139.72,139.67,0.05405841]
[1725022314089,3.5782,139.72,139.67,0.05405841]
[1725022314289,40.88,139.74,139.67,0.05405841]
[1725022314685,7.16369644,139.73,139.7,3.5784]
[1725022314885,7.16369644,139.73,139.7,3.62951995]
[1725022315193,3.5779,139.73,139.71,3.5782]
[1725022315585,3.5779,139.73,139.7,0.05111995]
[1725022315984,3.5781,139.72,139.7,0.05111995]
[1725022316990,7.18878914,139.73,139.7,0.05111995]
[1725022317194,7.18878914,139.73,139.7,3.62961995]
[1725022317390,3.61088914,139.73,139.7,3.62961995]
[1725022317593,3.5778,139.73,139.7,3.62961995]
[1725022317788,27.46,139.74,139.7,3.62961995]
[1725022317991,27.46,139.74,139.7,0.05111995]
[1725022318396,3.5781,139.72,139.7,0.05111995]
[1725022319298,3.5781,139.72,139.7,3.62961995]
[1725022319600,3.5781,139.72,139.7,0.05111995]
[1725022319791,3.5783,139.71,139.7,0.05111995]
[1725022320587,3.5781,139.72,139.7,0.05111995]
[1725022321391,7.07873816,139.73,139.7,3.62951995]
[1725022321796,3.5778,139.73,139.7,3.62951995]
[1725022321998,3.5778,139.73,139.71,3.5781]
[1725022322700,27.46,139.78,139.7,0.05111995]
[1725022322900,27.46,139.78,139.7,2.8087]
[1725022323201,3.5768,139.77,139.74,3.5773]
[1725022323498,27.46,139.8,139.73,0.05147909]
[1725022323705,27.46,139.8,139.75,3.5771]
[1725022323706,3.5766,139.78,139.75,3.5771]
[1725022323902,3.5766,139.78,139.75,3.62894392]
[1725022325908,3.5766,139.78,139.76,3.577]
[1725022326099,3.5766,139.78,139.75,0.05184392]
[1725022326406,3.5766,139.78,139.75,3.62894392]
[1725022326906,3.5768,139.77,139.75,0.05184392]
[1725022327296,3.51803999,139.78,139.75,0.05184392]
[1725022327600,27.46,139.8,139.75,0.05184392]
[1725022327799,3.5769,139.77,139.75,0.05184392]
[1725022328702,3.5769,139.77,139.75,3.62904392]
[1725022329697,31.00951173,139.8,139.75,0.05184392]
[1725022330304,3.577,139.76,139.75,0.05184392]
[1725022331909,31.037,139.76,139.75,0.05184392]
[1725022332403,37.557,139.76,139.75,0.05184392]
[1725022332711,3.54951173,139.8,139.75,0.05184392]
[1725022332712,10.0968,139.77,139.75,0.05184392]
[1725022333008,27.46,139.78,139.75,0.05184392]
[1725022333207,28.6,139.84,139.75,0.05184392]
[1725022333208,3.5768,139.77,139.75,0.05184392]
[1725022333411,27.46,139.8,139.75,3.62587035]
[1725022333605,33.98,139.8,139.75,3.62587035]
[1725022333908,3.5766,139.78,139.75,3.62587035]
[1725022334111,3.5766,139.78,139.76,3.577]
[1725022334509,3.5229767,139.8,139.75,0.04867035]
[1725022334706,3.5229767,139.8,139.77,3.5765]
[1725022334707,3.5761,139.8,139.77,3.5765]
[1725022335105,7.14773364,139.8,139.77,3.5765]
[1725022335501,3.5762,139.79,139.77,3.5765]
[1725022335908,27.46,139.82,139.77,3.5765]
[1725022336102,27.46,139.82,139.78,0.0539068]
[1725022336407,3.5761,139.8,139.78,0.0539068]
[1725022339105,28.6,139.84,139.78,0.0539068]
[1725022339106,56.06,139.84,139.78,0.0539068]
[1725022339419,30.94999431,139.84,139.78,0.0539068]
[1725022339607,3.5757,139.81,139.78,0.0539068]
[1725022339914,27.46,139.82,139.78,0.0539068]
[1725022340308,31.11521384,139.82,139.78,0.0539068]
[1725022341013,3.5762,139.79,139.78,0.0539068]
[1725022350205,27.51249639,139.8,139.69,27.46]
[1725022350412,27.46,139.75,139.69,1.4129]
[1725022350607,27.46,139.73,139.69,1.4129]
[1725022350811,27.46,139.73,139.68,1.4001]
[1725022351122,33.98,139.73,139.68,1.4001]
[1725022351319,3.5787,139.7,139.69,0.04751616]
[1725022356423,10.0983,139.71,139.69,0.04751616]
[1725022357422,6.52,139.71,139.69,0.04751616]
[1725022357925,0.05401171,139.72,139.7,3.5785]
[1725022358221,0.05401171,139.72,139.69,0.04751616]
[1725022358222,0.05401171,139.72,139.71,3.5783]
[1725022358928,234.80621384,139.82,139.7,28.7835]
[1725022358929,27.46,139.78,139.7,28.7835]
[1725022359114,27.46,139.78,139.71,4.14597479]
[1725022359115,3.5769,139.77,139.71,4.14597479]
[1725022359322,234.80621384,139.82,139.75,3.5771]
[1725022359323,27.46,139.8,139.75,3.5771]
[1725022359721,3.5767,139.78,139.75,3.5771]
[1725022359917,3.5767,139.78,139.75,3.62919057]
[1725022360318,3.5767,139.78,139.76,3.5769]
[1725022360527,3.5767,139.78,139.75,0.05209057]
[1725022361223,3.5767,139.78,139.75,3.62909057]
[1725022361945,3.5767,139.78,139.76,3.577]
[1725022362129,3.5763,139.79,139.76,3.577]
[1725022362634,3.5765,139.78,139.76,3.577]
[1725022366237,3.5763,139.79,139.76,3.577]
[1725022368337,3.5765,139.78,139.76,3.577]
[1725022368942,3.5765,139.78,139.77,2.74094009]
[1725022369249,3.5765,139.78,139.76,3.577]
[1725022369737,3.5763,139.79,139.76,3.577]
[1725022370448,3.5765,139.78,139.76,3.577]
[1725022371935,31.0361,139.8,139.77,3.5765]
[1725022372341,3.65521384,139.82,139.75,27.51209057]
[1725022372544,3.5755,139.82,139.79,3.576]
[1725022372846,3.5755,139.82,139.79,3.62141095]
[1725022373255,3.5753,139.83,139.8,3.5759]
[1725022376056,3.5755,139.82,139.8,3.5759]
[1725022376246,3.5755,139.82,139.79,0.04541095]
[1725022376445,3.5755,139.82,139.79,3.62151095]
[1725022376747,31.06034083,139.83,139.79,0.04541095]
[1725022376947,27.46,139.83,139.79,0.04541095]
[1725022377152,31.01385713,139.83,139.79,0.04541095]
[1725022377348,3.5758,139.81,139.79,0.04541095]
[1725022378056,3.5758,139.81,139.79,2.78543928]
[1725022379157,3.576,139.8,139.79,2.78543928]
[1725022379553,31.01385713,139.83,139.79,2.78543928]
[1725022379749,3.5758,139.81,139.79,6.36163928]
[1725022379948,3.5758,139.81,139.79,3.62161095]
[1725022380557,3.576,139.8,139.79,0.04541095]
[1725022381453,3.5758,139.81,139.79,0.04541095]
[1725022381649,3.5758,139.81,139.79,6.36140386]
[1725022381853,3.5758,139.81,139.8,2.73989291]
[1725022382260,3.5756,139.82,139.8,6.31579291]